Workbook

Sheet Tarife (hidden)
A1: Tarife für das Jahr | G1: 2022
B2: Plan A | D2: Plan B | F2: Plan C
B3: Männer | C3: Frauen | D3: Männer | E3: Frauen | F3: Männer | G3: Frauen | H3: SiFo | I3: VK | J3: Alter | N3: VK Rabatte | O3: Rabatt | P3: Vkmax
A4: =p_jahr-18 -> 2004 | B4: 0.0112 | C4: 0.0101 | D4: 0.0115 | E4: 0.0103 | F4: 0.0133 | G4: 0.0112 | H4: 0 | I4: 0.008 | J4: =p_jahr-A4 -> 18 | N4: 0 | O4: 0 | P4: 360
A5: =A4-1 -> 2003 | B5: 0.0112 | C5: 0.0101 | D5: 0.0115 | E5: 0.0103 | F5: 0.0133 | G5: 0.0112 | H5: 0 | I5: 0.008 | J5: 19 | N5: 1 | O5: 0.001 | P5: 336
A6: 2002 | B6: 0.0112 | C6: 0.0101 | D6: 0.0115 | E6: 0.0103 | F6: 0.0133 | G6: 0.0112 | H6: 0 | I6: 0.008 | J6: 20 | N6: 2 | O6: 0.002 | P6: 312
A7: 2001 | B7: 0.0112 | C7: 0.0101 | D7: 0.0115 | E7: 0.0103 | F7: 0.0133 | G7: 0.0112 | H7: 0 | I7: 0.008 | J7: 21 | N7: 3 | O7: 0.003 | P7: 288
A8: 2000 | B8: 0.0112 | C8: 0.0101 | D8: 0.0115 | E8: 0.0103 | F8: 0.0133 | G8: 0.0112 | H8: 0 | I8: 0.008 | J8: 22 | N8: 4 | O8: 0.004 | P8: 264
A9: 1999 | B9: 0.0112 | C9: 0.0101 | D9: 0.0115 | E9: 0.0103 | F9: 0.0133 | G9: 0.0112 | H9: 0 | I9: 0.008 | J9: 23 | N9: 5 | O9: 0.005 | P9: 240
A10: 1998 | B10: 0.0112 | C10: 0.0101 | D10: 0.0115 | E10: 0.0103 | F10: 0.0133 | G10: 0.0112 | H10: 0 | I10: 0.008 | J10: 24
A11: 1997 | B11: 0.09151 | C11: 0.09371 | D11: 0.09251 | E11: 0.09511 | F11: 0.09661 | G11: 0.09871 | H11: 0.0012 | I11: 0.014 | J11: 25 | K11: => SiFo ab 25ig
A12: 1996 | B12: 0.09151 | C12: 0.09371 | D12: 0.09251 | E12: 0.09511 | F12: 0.09661 | G12: 0.09871 | H12: 0.0012 | I12: 0.014 | J12: 26
A13: 1995 | B13: 0.09151 | C13: 0.09371 | D13: 0.09251 | E13: 0.09511 | F13: 0.09661 | G13: 0.09871 | H13: 0.0012 | I13: 0.014 | J13: 27
A14: 1994 | B14: 0.09151 | C14: 0.09371 | D14: 0.09251 | E14: 0.09511 | F14: 0.09661 | G14: 0.09871 | H14: 0.0012 | I14: 0.014 | J14: 28
A15: 1993 | B15: 0.09151 | C15: 0.09371 | D15: 0.09251 | E15: 0.09511 | F15: 0.09661 | G15: 0.09871 | H15: 0.0012 | I15: 0.014 | J15: 29
A16: 1992 | B16: 0.09151 | C16: 0.09371 | D16: 0.09251 | E16: 0.09511 | F16: 0.09661 | G16: 0.09871 | H16: 0.0012 | I16: 0.014 | J16: 30
A17: 1991 | B17: 0.09151 | C17: 0.09371 | D17: 0.09251 | E17: 0.09511 | F17: 0.09661 | G17: 0.09871 | H17: 0.0012 | I17: 0.014 | J17: 31
A18: 1990 | B18: 0.09151 | C18: 0.09371 | D18: 0.09251 | E18: 0.09511 | F18: 0.09661 | G18: 0.09871 | H18: 0.0012 | I18: 0.014 | J18: 32
A19: 1989 | B19: 0.09151 | C19: 0.09371 | D19: 0.09251 | E19: 0.09511 | F19: 0.09661 | G19: 0.09871 | H19: 0.0012 | I19: 0.014 | J19: 33
A20: 1988 | B20: 0.09151 | C20: 0.09371 | D20: 0.09251 | E20: 0.09511 | F20: 0.09661 | G20: 0.09871 | H20: 0.0012 | I20: 0.014 | J20: 34
A21: 1987 | B21: 0.12901 | C21: 0.13401 | D21: 0.13121 | E21: 0.13701 | F21: 0.13971 | G21: 0.14291 | H21: 0.0012 | I21: 0.014 | J21: 35
A22: 1986 | B22: 0.12901 | C22: 0.13401 | D22: 0.13121 | E22: 0.13701 | F22: 0.13971 | G22: 0.14291 | H22: 0.0012 | I22: 0.014 | J22: 36
A23: 1985 | B23: 0.12901 | C23: 0.13401 | D23: 0.13121 | E23: 0.13701 | F23: 0.13971 | G23: 0.14291 | H23: 0.0012 | I23: 0.014 | J23: 37
A24: 1984 | B24: 0.12901 | C24: 0.13401 | D24: 0.13121 | E24: 0.13701 | F24: 0.13971 | G24: 0.14291 | H24: 0.0012 | I24: 0.014 | J24: 38
A25: 1983 | B25: 0.12901 | C25: 0.13401 | D25: 0.13121 | E25: 0.13701 | F25: 0.13971 | G25: 0.14291 | H25: 0.0012 | I25: 0.014 | J25: 39
A26: 1982 | B26: 0.12901 | C26: 0.13401 | D26: 0.13121 | E26: 0.13701 | F26: 0.13971 | G26: 0.14291 | H26: 0.0012 | I26: 0.014 | J26: 40
A27: 1981 | B27: 0.12901 | C27: 0.13401 | D27: 0.13121 | E27: 0.13701 | F27: 0.13971 | G27: 0.14291 | H27: 0.0012 | I27: 0.014 | J27: 41
A28: 1980 | B28: 0.12901 | C28: 0.13401 | D28: 0.13121 | E28: 0.13701 | F28: 0.13971 | G28: 0.14291 | H28: 0.0012 | I28: 0.014 | J28: 42
A29: 1979 | B29: 0.12901 | C29: 0.13401 | D29: 0.13121 | E29: 0.13701 | F29: 0.13971 | G29: 0.14291 | H29: 0.0012 | I29: 0.014 | J29: 43
A30: 1978 | B30: 0.12901 | C30: 0.13401 | D30: 0.13121 | E30: 0.13701 | F30: 0.13971 | G30: 0.14291 | H30: 0.0012 | I30: 0.014 | J30: 44
A31: 1977 | B31: 0.18611 | C31: 0.18561 | D31: 0.19301 | E31: 0.19171 | F31: 0.20771 | G31: 0.20571 | H31: 0.0012 | I31: 0.014 | J31: 45
A32: 1976 | B32: 0.18611 | C32: 0.18561 | D32: 0.19301 | E32: 0.19171 | F32: 0.20771 | G32: 0.20571 | H32: 0.0012 | I32: 0.014 | J32: 46
A33: 1975 | B33: 0.18611 | C33: 0.18561 | D33: 0.19301 | E33: 0.19171 | F33: 0.20771 | G33: 0.20571 | H33: 0.0012 | I33: 0.014 | J33: 47
A34: 1974 | B34: 0.18611 | C34: 0.18561 | D34: 0.19301 | E34: 0.19171 | F34: 0.20771 | G34: 0.20571 | H34: 0.0012 | I34: 0.014 | J34: 48
A35: 1973 | B35: 0.18611 | C35: 0.18561 | D35: 0.19301 | E35: 0.19171 | F35: 0.20771 | G35: 0.20571 | H35: 0.0012 | I35: 0.014 | J35: 49
A36: 1972 | B36: 0.18611 | C36: 0.18561 | D36: 0.19301 | E36: 0.19171 | F36: 0.20771 | G36: 0.20571 | H36: 0.0012 | I36: 0.014 | J36: 50
A37: 1971 | B37: 0.18611 | C37: 0.18561 | D37: 0.19301 | E37: 0.19171 | F37: 0.20771 | G37: 0.20571 | H37: 0.0012 | I37: 0.014 | J37: 51
A38: 1970 | B38: 0.18611 | C38: 0.18561 | D38: 0.19301 | E38: 0.19171 | F38: 0.20771 | G38: 0.20571 | H38: 0.0012 | I38: 0.014 | J38: 52
A39: 1969 | B39: 0.18611 | C39: 0.18561 | D39: 0.19301 | E39: 0.19171 | F39: 0.20771 | G39: 0.20571 | H39: 0.0012 | I39: 0.014 | J39: 53
A40: 1968 | B40: 0.18611 | C40: 0.18561 | D40: 0.19301 | E40: 0.19171 | F40: 0.20771 | G40: 0.20571 | H40: 0.0012 | I40: 0.014 | J40: 54
A41: 1967 | B41: 0.21812 | C41: 0.21502 | D41: 0.22852 | E41: 0.22372 | F41: 0.24612 | G41: 0.23782 | H41: 0.0012 | I41: 0.014 | J41: 55
A42: 1966 | B42: 0.21812 | C42: 0.21502 | D42: 0.22852 | E42: 0.22372 | F42: 0.24612 | G42: 0.23782 | H42: 0.0012 | I42: 0.014 | J42: 56
A43: 1965 | B43: 0.21812 | C43: 0.21502 | D43: 0.22852 | E43: 0.22372 | F43: 0.24612 | G43: 0.23782 | H43: 0.0012 | I43: 0.014 | J43: 57
A44: 1964 | B44: 0.21812 | C44: 0.21502 | D44: 0.22852 | E44: 0.22372 | F44: 0.24612 | G44: 0.23782 | H44: 0.0012 | I44: 0.014 | J44: 58
A45: 1963 | B45: 0.21812 | C45: 0.21502 | D45: 0.22852 | E45: 0.22372 | F45: 0.24612 | G45: 0.23782 | H45: 0.0012 | I45: 0.014 | J45: 59
A46: 1962 | B46: 0.21012 | C46: 0.20532 | D46: 0.21962 | E46: 0.21212 | F46: 0.23102 | G46: 0.22142 | H46: 0.0012 | I46: 0.014 | J46: 60
A47: 1961 | B47: 0.21012 | C47: 0.20532 | D47: 0.21962 | E47: 0.21212 | F47: 0.23102 | G47: 0.22142 | H47: 0.0012 | I47: 0.014 | J47: 61
A48: 1960 | B48: 0.21012 | C48: 0.20532 | D48: 0.21962 | E48: 0.21212 | F48: 0.23102 | G48: 0.22142 | H48: 0.0012 | I48: 0.014 | J48: 62
A49: 1959 | B49: 0.21012 | C49: 0.20532 | D49: 0.21962 | E49: 0.21212 | F49: 0.23102 | G49: 0.22142 | H49: 0.0012 | I49: 0.014 | J49: 63
A50: 1958 | B50: 0.21012 | C50: 0.20532 | D50: 0.21962 | E50: 0.21212 | F50: 0.23102 | G50: 0.22142 | H50: 0.0012 | I50: 0.014 | J50: 64
A51: 1957 | B51: 0.21012 | C51: 0 | D51: 0.21962 | E51: 0 | F51: 0.23102 | G51: 0 | H51: 0.0012 | I51: 0.014 | J51: 65
A60: Sparprämie | B60: Männer | C60: Frauen | D60: Plan E | E60: Plan F | F60: Plan E+ | G60: Plan F+
A61: 18 | D61: 0 | E61: 0 | F61: 0 | G61: 0
A62: 19 | D62: 0 | E62: 0 | F62: 0 | G62: 0
A63: 20 | D63: 0 | E63: 0 | F63: 0 | G63: 0
A64: 21 | D64: 0 | E64: 0 | F64: 0 | G64: 0
A65: 22 | D65: 0 | E65: 0 | F65: 0 | G65: 0
A66: 23 | D66: 0 | E66: 0 | F66: 0 | G66: 0
A67: 24 | D67: 0 | E67: 0 | F67: 0 | G67: 0
A68: 25 | B68: 0.07 | C68: 0.07 | D68: 0.08 | E68: 0.13 | F68: 0.08 | G68: 0.13
A69: 26 | B69: 0.07 | C69: 0.07 | D69: 0.08 | E69: 0.13 | F69: 0.08 | G69: 0.13
A70: 27 | B70: 0.07 | C70: 0.07 | D70: 0.08 | E70: 0.13 | F70: 0.08 | G70: 0.13
A71: 28 | B71: 0.07 | C71: 0.07 | D71: 0.08 | E71: 0.13 | F71: 0.08 | G71: 0.13
A72: 29 | B72: 0.07 | C72: 0.07 | D72: 0.08 | E72: 0.13 | F72: 0.08 | G72: 0.13
A73: 30 | B73: 0.07 | C73: 0.07 | D73: 0.08 | E73: 0.13 | F73: 0.08 | G73: 0.13
A74: 31 | B74: 0.07 | C74: 0.07 | D74: 0.08 | E74: 0.13 | F74: 0.08 | G74: 0.13
A75: 32 | B75: 0.07 | C75: 0.07 | D75: 0.08 | E75: 0.13 | F75: 0.08 | G75: 0.13
A76: 33 | B76: 0.07 | C76: 0.07 | D76: 0.08 | E76: 0.13 | F76: 0.08 | G76: 0.13
A77: 34 | B77: 0.07 | C77: 0.07 | D77: 0.08 | E77: 0.13 | F77: 0.08 | G77: 0.13
A78: 35 | B78: 0.1 | C78: 0.1 | D78: 0.05 | E78: 0.1 | F78: 0.05 | G78: 0.1
A79: 36 | B79: 0.1 | C79: 0.1 | D79: 0.05 | E79: 0.1 | F79: 0.05 | G79: 0.1
A80: 37 | B80: 0.1 | C80: 0.1 | D80: 0.05 | E80: 0.1 | F80: 0.05 | G80: 0.1
A81: 38 | B81: 0.1 | C81: 0.1 | D81: 0.05 | E81: 0.1 | F81: 0.05 | G81: 0.1
A82: 39 | B82: 0.1 | C82: 0.1 | D82: 0.05 | E82: 0.1 | F82: 0.05 | G82: 0.1
A83: 40 | B83: 0.1 | C83: 0.1 | D83: 0.05 | E83: 0.1 | F83: 0.05 | G83: 0.1
A84: 41 | B84: 0.1 | C84: 0.1 | D84: 0.1 | E84: 0.15 | F84: 0.1 | G84: 0.15
A85: 42 | B85: 0.1 | C85: 0.1 | D85: 0.1 | E85: 0.15 | F85: 0.1 | G85: 0.15
A86: 43 | B86: 0.1 | C86: 0.1 | D86: 0.1 | E86: 0.15 | F86: 0.1 | G86: 0.15
A87: 44 | B87: 0.1 | C87: 0.1 | D87: 0.1 | E87: 0.15 | F87: 0.1 | G87: 0.15
A88: 45 | B88: 0.15 | C88: 0.15 | D88: 0.05 | E88: 0.1 | F88: 0.05 | G88: 0.1
A89: 46 | B89: 0.15 | C89: 0.15 | D89: 0.05 | E89: 0.1 | F89: 0.05 | G89: 0.1
A90: 47 | B90: 0.15 | C90: 0.15 | D90: 0.05 | E90: 0.1 | F90: 0.05 | G90: 0.1
A91: 48 | B91: 0.15 | C91: 0.15 | D91: 0.05 | E91: 0.1 | F91: 0.05 | G91: 0.1
A92: 49 | B92: 0.15 | C92: 0.15 | D92: 0.05 | E92: 0.1 | F92: 0.05 | G92: 0.1
A93: 50 | B93: 0.15 | C93: 0.15 | D93: 0.05 | E93: 0.1 | F93: 0.05 | G93: 0.1
A94: 51 | B94: 0.15 | C94: 0.15 | D94: 0.05 | E94: 0.1 | F94: 0.05 | G94: 0.1
A95: 52 | B95: 0.15 | C95: 0.15 | D95: 0.05 | E95: 0.1 | F95: 0.05 | G95: 0.1
A96: 53 | B96: 0.15 | C96: 0.15 | D96: 0.05 | E96: 0.1 | F96: 0.05 | G96: 0.1
A97: 54 | B97: 0.15 | C97: 0.15 | D97: 0.05 | E97: 0.1 | F97: 0.05 | G97: 0.1
A98: 55 | B98: 0.18 | C98: 0.18 | D98: 0.02 | E98: 0.07 | F98: 0.02 | G98: 0.07
A99: 56 | B99: 0.18 | C99: 0.18 | D99: 0.02 | E99: 0.07 | F99: 0.02 | G99: 0.07
A100: 57 | B100: 0.18 | C100: 0.18 | D100: 0.02 | E100: 0.07 | F100: 0.02 | G100: 0.07
A101: 58 | B101: 0.18 | C101: 0.18 | D101: 0.02 | E101: 0.07 | F101: 0.02 | G101: 0.07
A102: 59 | B102: 0.18 | C102: 0.18 | D102: 0.02 | E102: 0.07 | F102: 0.02 | G102: 0.07
A103: 60 | B103: 0.18 | C103: 0.18 | D103: 0.02 | E103: 0.07 | F103: 0.02 | G103: 0.07
A104: 61 | B104: 0.18 | C104: 0.18 | D104: 0.02 | E104: 0.07 | F104: 0.02 | G104: 0.07
A105: 62 | B105: 0.18 | C105: 0.18 | D105: 0.02 | E105: 0.07 | F105: 0.02 | G105: 0.07
A106: 63 | B106: 0.18 | C106: 0.18 | D106: 0.02 | E106: 0.07 | F106: 0.02 | G106: 0.07
A107: 64 | B107: 0.18 | C107: 0.18 | D107: 0.02 | E107: 0.07 | F107: 0.02 | G107: 0.07
A108: 65 | B108: 0.18 | D108: 0.02 | E108: 0.07 | F108: 0.02 | G108: 0.07
A116: Risikoprämie | B116: Plan E+ | C116: Plan F+
A117: 18 | B117: 0 | C117: 0
A118: 19 | B118: 0 | C118: 0
A119: 20 | B119: 0 | C119: 0
A120: 21 | B120: 0 | C120: 0
A121: 22 | B121: 0 | C121: 0
A122: 23 | B122: 0 | C122: 0
A123: 24 | B123: 0 | C123: 0
A124: 25 | B124: 0.001 | C124: 0.0027
A125: 26 | B125: 0.001 | C125: 0.0027
A126: 27 | B126: 0.001 | C126: 0.0027
A127: 28 | B127: 0.001 | C127: 0.0027
A128: 29 | B128: 0.001 | C128: 0.0027
A129: 30 | B129: 0.001 | C129: 0.0027
A130: 31 | B130: 0.001 | C130: 0.0027
A131: 32 | B131: 0.001 | C131: 0.0027
A132: 33 | B132: 0.001 | C132: 0.0027
A133: 34 | B133: 0.001 | C133: 0.0027
A134: 35 | B134: 0.001 | C134: 0.0027
A135: 36 | B135: 0.001 | C135: 0.0027
A136: 37 | B136: 0.001 | C136: 0.0027
A137: 38 | B137: 0.001 | C137: 0.0027
A138: 39 | B138: 0.001 | C138: 0.0027
A139: 40 | B139: 0.001 | C139: 0.0027
A140: 41 | B140: 0.001 | C140: 0.0027
A141: 42 | B141: 0.001 | C141: 0.0027
A142: 43 | B142: 0.001 | C142: 0.0027
A143: 44 | B143: 0.001 | C143: 0.0027
A144: 45 | B144: 0.001 | C144: 0.0027
A145: 46 | B145: 0.001 | C145: 0.0027
A146: 47 | B146: 0.001 | C146: 0.0027
A147: 48 | B147: 0.001 | C147: 0.0027
A148: 49 | B148: 0.001 | C148: 0.0027
A149: 50 | B149: 0.001 | C149: 0.0027
A150: 51 | B150: 0.001 | C150: 0.0027
A151: 52 | B151: 0.001 | C151: 0.0027
A152: 53 | B152: 0.001 | C152: 0.0027
A153: 54 | B153: 0.001 | C153: 0.0027
A154: 55 | B154: 0.001 | C154: 0.0027
A155: 56 | B155: 0.001 | C155: 0.0027
A156: 57 | B156: 0.001 | C156: 0.0027
A157: 58 | B157: 0.001 | C157: 0.0027
A158: 59 | B158: 0.001 | C158: 0.0027
A159: 60 | B159: 0.001 | C159: 0.0027
A160: 61 | B160: 0.001 | C160: 0.0027
A161: 62 | B161: 0.001 | C161: 0.0027
A162: 63 | B162: 0.001 | C162: 0.0027
A163: 64 | B163: 0.001 | C163: 0.0027
A164: 65 | B164: 0.001 | C164: 0.0027

Sheet Parameter (hidden)
A1: Parameter | B1: Wert 1 | C1: Wert 2
A2: Sprache | B2: =u_sprache1 -> de
A3: gültiges Jahr | B3: 2022 | D3: ->Regelt Gültigkeit des Rechners
A4: Jahr Beginn | B4: =DATE(B3,1,1) -> 2022-01-01
A5: Jahr Ende | B5: =DATE(B3,12,31) -> 2022-12-31
A6: Anz Tage im Jahr | B6: =p_jahr_ende-p_jahr_beginn+1 -> 365
A7: max. AHV-Rente | B7: 28680 | D7: -> Wichtig für alle Parameter
A8: minimal koordinierter Lohn | B8: =B7*0.125 -> 3585
A9: max. Koordinationsabzug | B9: =B7*0.875*u_ivfaktor -> 25095
A10: Eintrittsschwelle | B10: =B7*0.75*u_ivfaktor -> 21510
A11: max. vers. BVG Lohn | B11: =B7*30*u_ivfaktor -> 860400
A12: max. koordinierter Lohn | B12: =B7*2.125*u_ivfaktor -> 60945
A13: max massgebender AHV Lohn | B13: =B7*3*u_ivfaktor -> 86040
A14: =CONCATENATE("Zins im Jahr ",p_jahr) -> Zins im Jahr 2022 | B14: 0.01 | D14: Verzinsung Sparguthaben
A15: Minimales Alter | B15: 18
A16: Pensionsalter M | B16: 65
A17: Pensionsalter W | B17: 64

Sheet Listen (hidden)
A1: Sprache
A2: de | B2: 1 | C2: =VLOOKUP(u_sprache1,Listen!A2:B4,2,FALSE)+1 -> 2
A3: fr | B3: 2
A4: it | B4: 3
A7: Geschlecht
A8: =VLOOKUP("geschlecht1",texte,u_sprache,FALSE) -> männlich | B8: 1 | C8: =VLOOKUP(u_geschlecht1,A8:B9,2,FALSE) -> 2
A9: =VLOOKUP("geschlecht2",texte,u_sprache,FALSE) -> weiblich | B9: 2
A11: =VLOOKUP("geschlecht1k",texte,u_sprache,FALSE) -> M | C11: =IF(u_geschlecht=1,A11,IF(u_geschlecht=2,A12,"")) -> W
A12: =VLOOKUP("geschlecht2k",texte,u_sprache,FALSE) -> W
A15: Basispläne
A16: =VLOOKUP("planA",texte,u_sprache,FALSE) -> Plan A | B16: 1 | C16: =VLOOKUP(u_plan1,A16:B18,2,FALSE) -> 1
A17: =VLOOKUP("planB",texte,u_sprache,FALSE) -> Plan B | B17: 3
A18: =VLOOKUP("planC",texte,u_sprache,FALSE) -> Plan C | B18: 5
A21: Zusatzpläne / Kaderplan
A22: =VLOOKUP("plan0",texte,u_sprache,FALSE) -> Kein Zusatzplan | B22: 0 | C22: =VLOOKUP(u_zusatzplan1,A22:B26,2,FALSE) -> 0
A23: =VLOOKUP("planE",texte,u_sprache,FALSE) -> Zusatzplan E | B23: 1
A24: =VLOOKUP("planF",texte,u_sprache,FALSE) -> Zusatzplan F | B24: 2
A25: =VLOOKUP("planE+",texte,u_sprache,FALSE) -> Zusatzplan E+ | B25: 3
A26: =VLOOKUP("planF+",texte,u_sprache,FALSE) -> Zusatzplan F+ | B26: 4
A29: Koordinationsabzug
A30: =VLOOKUP("mitKoA",texte,u_sprache,FALSE) -> mit Koordinationsabzug | B30: 1 | C30: =VLOOKUP(u_plan_koa1,A30:B31,2,FALSE) -> 1
A31: =VLOOKUP("ohneKoA",texte,u_sprache,FALSE) -> ohne Koordinationabzug | B31: 0
A34: VK Abzug
A35: =VLOOKUP("vk0",texte,u_sprache,FALSE) -> Standardtarif | B35: 0 | C35: =VLOOKUP(u_vkrabatt1,A35:B40,2,FALSE) -> 0
A36: =VLOOKUP("vk1",texte,u_sprache,FALSE) -> Verwaltungskostentarif 1 | B36: 1
A37: =VLOOKUP("vk2",texte,u_sprache,FALSE) -> Verwaltungskostentarif 2 | B37: 2
A38: =VLOOKUP("vk3",texte,u_sprache,FALSE) -> Verwaltungskostentarif 3 | B38: 3
A39: =VLOOKUP("vk4",texte,u_sprache,FALSE) -> Verwaltungskostentarif 4 | B39: 4
A40: =VLOOKUP("vk5",texte,u_sprache,FALSE) -> Verwaltungskostentarif 5 | B40: 5
A42: Texte Bestandesübersicht (für Makro)
A43: =VLOOKUP("grundbeitrag_vk",texte,u_sprache,FALSE) -> Grundbeitrag Verwaltungskosten
A44: =VLOOKUP("prämie_betrieb",texte,u_sprache,FALSE) -> Total Beiträge Betrieb
A45: =VLOOKUP("name",texte,u_sprache,FALSE) -> Vorname / Name
A46: =VLOOKUP("jahrgang2",texte,u_sprache,FALSE) -> Jahrgang
A47: =VLOOKUP("ahvlohn_k",texte,u_sprache,FALSE) -> AHV-Lohn
A48: =VLOOKUP("vers_lohn",texte,u_sprache,FALSE) -> Versicherter Lohn
A49: =VLOOKUP("sparprämie_best",texte,u_sprache,FALSE) -> Sparbeitrag %
A50: =VLOOKUP("sparprämie2_best",texte,u_sprache,FALSE) -> Sparbeitrag
A51: =VLOOKUP("risikoprämie_best",texte,u_sprache,FALSE) -> Risikobeitrag %
A52: =VLOOKUP("risikoprämie2_best",texte,u_sprache,FALSE) -> Risikobeitrag
A53: =VLOOKUP("verwkosten2",texte,u_sprache,FALSE) -> Verwaltungs-kosten
A54: =VLOOKUP("sifo2",texte,u_sprache,FALSE) -> Sicherheits-fonds Beitrag
A55: =VLOOKUP("tot_prämie",texte,u_sprache,FALSE) -> Total Beitrag
A56: =VLOOKUP("beitrag_an",texte,u_sprache,FALSE) -> Beitrag Arbeitnehmer
A57: =VLOOKUP("beitrag_an2",texte,u_sprache,FALSE) -> davon Anteil Arbeitnehmer
A58: =VLOOKUP("titel2",texte,u_sprache,FALSE) -> Beitragsverzeichnis Pensionskasse
A59: =VLOOKUP("as_pencas",texte,u_sprache,FALSE) -> Agrisano Pencas
A60: =VLOOKUP("as_pencas1",texte,u_sprache,FALSE) -> Berufliche Vorsorge
A61: =VLOOKUP("fusszeile",texte,u_sprache,FALSE) -> Laurstrasse 10 | 5201 Brugg | Telefon +41 (0)56 461 78 11 | Fax +41 (0)56 461 71 01 pencas@agrisano.ch | www.agrisano.ch
A62: =VLOOKUP("hinweis_zins",texte,u_sprache,FALSE) -> Der Zins für die Nachschüssigkeit wurde nicht berücksichtigt.
A63: =VLOOKUP("text1",texte,u_sprache,FALSE) -> Die Beitragsberechnung beruht auf den erfassten Daten. Massgebend ist schlussendlich die Prämienrechnung der Agrisano Pencas, welche aufgrund der effektiv gemeldeten Löhne erstellt wird.
A64: =VLOOKUP("titel_hinweis",texte,u_sprache,FALSE) -> Hinweise:
A65: =VLOOKUP("beitrag_ag",texte,u_sprache,FALSE) -> Beitrag Arbeitgeber
A68: Liste Invalidität
A69: =VLOOKUP("auswahl_iv1",texte,u_sprache,FALSE) -> keine Reduktion | B69: 0 | C69: 1
A70: 25% | B70: 40 | C70: 0.75
A71: 50% | B71: 50 | C71: 0.5
A72: 75% | B72: 60 | C72: 0.25
A73: 75% | B73: 66.66 | C73: 0.25
A74: =VLOOKUP("auswahl_iv2",texte,u_sprache,FALSE) -> kein BVG | B74: 70 | C74: 0
A76: Faktor | B76: =IF(u_ivaktiv1=0,1,VLOOKUP(u_ivgrad*100,B69:C74,2,TRUE)) -> 1
A77: Reduktion | B77: =INDEX(A69:A74,MATCH(B76,C69:C74,0)) -> keine Reduktion
A79: IV Rechner
A80: =VLOOKUP("aktiv",texte,u_sprache,FALSE) -> Aktiv | B80: 1 | C80: =IFERROR(IF(u_ivaktiv=A80,B80,B81),B81) -> 0
A81: =VLOOKUP("nichtaktiv",texte,u_sprache,FALSE) -> Nicht aktiv | B81: 0
A86: Usereingaben
A87: Vorname / Name | B87: =IF(u_ivaktiv1=0,C87,D87) -> Beispiel | C87: =Beitragsrechner!D10 -> Beispiel | D87: ='Beitragsrechner IV'!D14 -> Muster 1 Hans
A88: AHV Nr | B88: 756.1234.1234.12 | C88: =Beitragsrechner!D11 -> 756.1234.1234.12 | D88: ='Beitragsrechner IV'!D15 -> 756.9876.5432.10
A89: Jahrgang | B89: 1995 | C89: =Beitragsrechner!D12 -> 1995 | D89: ='Beitragsrechner IV'!D16 -> 1980
A90: Geschlecht | B90: weiblich | C90: =Beitragsrechner!D13 -> weiblich | D90: ='Beitragsrechner IV'!D17 -> Uomo
A91: Basisplan | B91: Plan A | C91: =Beitragsrechner!D14 -> Plan A | D91: ='Beitragsrechner IV'!D18 -> Piano A
A92: Koordinationsabzug | B92: mit Koordinationsabzug | C92: =Beitragsrechner!D15 -> mit Koordinationsabzug | D92: ='Beitragsrechner IV'!D19 -> Con deduzione di coordinamento
A93: Verwaltungskostentarif | B93: Standardtarif | C93: =Beitragsrechner!D16 -> Standardtarif | D93: ='Beitragsrechner IV'!D20 -> Tariffa standard
A94: Zusatzplan | B94: Kein Zusatzplan | C94: =Beitragsrechner!D17 -> Kein Zusatzplan | D94: ='Beitragsrechner IV'!D21 -> Senza piano supplementare
A95: Anstellungsdauer von | B95: 2022-01-01 | C95: =Beitragsrechner!I11 -> 2022-01-01 | D95: ='Beitragsrechner IV'!I15 -> 2021-01-01
A96: Anstellungsdauer bis | B96: 2022-12-31 | C96: =Beitragsrechner!I12 -> 2022-12-31 | D96: ='Beitragsrechner IV'!I16 -> 2021-06-12
A97: AHV-Lohn während der Anstellung: | B97: 86040 | C97: =Beitragsrechner!I14 -> 86040 | D97: ='Beitragsrechner IV'!I18 -> 55000

Sheet Texte (hidden)
A1: ID | B1: Deutsch | C1: Französisch | D1: Italienisch
A2: titel1 | B2: Berechnung der Beiträge an die berufliche Vorsorge | C2: Calcul des cotisations à la prévoyance professionnelle | D2: Calcolo dei contributi a favore della previdenza professionale
A3: text1 | B3: Die Beitragsberechnung beruht auf den erfassten Daten. Massgebend ist schlussendlich die Prämienrechnung der Agrisano Pencas, welche aufgrund der effektiv gemeldeten Löhne erstellt wird. | C3: Le décompte des cotisations se base sur les données enregistrées. Finalement, seul la facture de primes que l'Agrisano Pencas génére sur la base des salaires annoncés est déterminante. | D3: In ogni caso fa stato quanto riportato nell’avviso di premio. Si declina qualsiasi responsabilità per un uso improprio.
A4: text1a | B4: Sie beinhaltet zudem einen Zins für das nachschüssige Inkasso. | C4: Celle-ci comprend notamment un intérêt pour paiement à terme échu. | D4: Le supplemento per versamento posticipato è include.
A5: text2 | B5: Bei Fragen zur Prämienrechnung wenden Sie sich bitte an die Agrisano Stiftung Globalversicherung (Tel. 056 461 78 55). Für die Berechnung der Beiträge von (teil-)invaliden Arbeitnehmenden nehmen Sie bitte Kontakt mit der Agrisano Pencas (Tel. 056 461 78 11) auf. | C5: Pour toute question, veuillez prendre contact avec Fondation Agrisano, Aussurance globale (Tél. 056 461 78 55). Pour le calcul des cotisations d’employés invalides (partiels ou totaux), veuillez prendre contact avec Agrisano Pencas (Tél. 056 461 78 11). | D5: In caso di domande sull’avviso di premio si prega di rivolgersi alla Fondazione Agrisano, Assicurazione globale (tel. 056 461 78 55). Per il calcolo del premio di impiegati (parzialmente) invalidi si prega di prendere contatto con Agrisano Pencas (tel. 056 461 78 11).
A6: text3 | B6: Die Versicherungspflicht gilt nur für Anstellungsverhältnisse, die für mehr als 3 Monate eingegangen worden sind (gilt auch, wenn das Arbeitsverhältnis zwischenzeitlich maximal 3 Monate unterbrochen wird, die Gesamtbeschäftigungsdauer aber mehr als 3 Monate beträgt). | C6: L'obligation d'assurance s’applique uniquement aux rapports de travail qui ont été conclus pour plus de 3 mois (vaut également si la relation de travail est interrompue au maximum 3 mois, mais que la du-rée totale de l'emploi est de plus de 3 mois). | D6: L’obbligo di assicurazione trova applicazione soltan-to per i rapporti d’impiego che sono stati contratti per una durata superiore a 3 mesi (applicabile anche se il rapporto di lavoro viene interrotto temporaneamente per un periodo massimo di 3 mesi, ma la durata com-plessiva dell’occupazione è comunque superiore a 3 mesi).
A7: geschlecht1 | B7: männlich | C7: masculin | D7: Uomo
A8: geschlecht2 | B8: weiblich | C8: feminin | D8: Donna
A9: planA | B9: Plan A | C9: Plan A | D9: Piano A
A10: planB | B10: Plan B | C10: Plan B | D10: Piano B
A11: planC | B11: Plan C | C11: Plan C | D11: Piano C
A12: planE | B12: Zusatzplan E | C12: Plan supplementaire E | D12: Piano supplementare E
A13: planF | B13: Zusatzplan F | C13: Plan supplementaire F | D13: Piano supplementare F
A14: planE+ | B14: Zusatzplan E+ | C14: Plan supplementaire E+ | D14: Piano supplementare E+
A15: planF+ | B15: Zusatzplan F+ | C15: Plan supplementaire F+ | D15: Piano supplementare F+
A16: plan0 | B16: Kein Zusatzplan | C16: Sans plan supplementaire | D16: Senza piano supplementare
A17: mitKoA | B17: mit Koordinationsabzug | C17: avec déduction de coordination | D17: Con deduzione di coordinamento
A18: ohneKoA | B18: ohne Koordinationabzug | C18: sans déduction de coordination | D18: senza deduzione di coordinamento
A19: vk0 | B19: Standardtarif | C19: Tarif standard | D19: Tariffa standard
A20: vk1 | B20: Verwaltungskostentarif 1 | C20: Tarif de frais administratifs 1 | D20: Tariffa dei costi di gestione 1
A21: vk2 | B21: Verwaltungskostentarif 2 | C21: Tarif de frais administratifs 2 | D21: Tariffa dei costi di gestione 2
A22: vk3 | B22: Verwaltungskostentarif 3 | C22: Tarif de frais administratifs 3 | D22: Tariffa dei costi di gestione 3
A23: vk4 | B23: Verwaltungskostentarif 4 | C23: Tarif de frais administratifs 4 | D23: Tariffa dei costi di gestione 4
A24: vk5 | B24: Verwaltungskostentarif 5 | C24: Tarif de frais administratifs 5 | D24: Tariffa dei costi di gestione 5
A25: as_pencas | B25: Agrisano Pencas | C25: Agrisano Pencas | D25: Agrisano Pencas
A26: as_pencas1 | B26: Berufliche Vorsorge | C26: Prévoyance professionnelle | D26: Previdenza professionale
A27: person | B27: Versicherte Person | C27: Personne assuré | D27: Persona assicurata
A28: name | B28: Vorname / Name | C28: Prénom / Nom | D28: Nome / Cognome
A29: ahvnr | B29: AHV-Nr. | C29: N° AVS | D29: N. AVS
A30: jahrgang | B30: Jahrgang | C30: Année de naissance | D30: Anno di nascita
A31: jahrgang2 | B31: Jahrgang | C31: Année de naissance | D31: Annata
A32: geschlecht | B32: Geschlecht | C32: Sexe | D32: Sesso
A33: pk | B33: Versicherungslösung | C33: Solution d'assurance | D33: Soluzione assicurativa
A34: plan | B34: Plan | C34: Plan | D34: Piano
A35: basisplan | B35: Basisplan | C35: Plan de base | D35: Piano
A36: koa | B36: Koordinationsabzug | C36: Déduction de coordination | D36: Deduzione di coordinamento
A37: vktarif | B37: Verwaltungskostentarif | C37: Tarif des frais administratifs | D37: Tariffa die costi di gestione
A38: zusatzplan | B38: Zusatzplan | C38: Plan supplementaire | D38: Piano supplementare
A39: anstellung | B39: Anstellung | C39: L'emploi | D39: L'impiego
A40: jahr | B40: Jahr | C40: Année | D40: Anno
A41: anstellungsdauer | B41: Anstellungsdauer von | C41: Durée de l'emploi du | D41: Durata dell’impiego da
A42: anstellungsdauer_bis | B42: Anstellungsdauer bis | C42: Durée de l'emploi au | D42: Durata dell’impiego a
A43: anstellungsdauer_k | B43: Anst. von | C43: emploi du | D43: Impiegato da
A44: anstellungsdauer_bis_k | B44: Anst. bis | C44: emploi au | D44: Impiegato a
A45: ahvlohn | B45: AHV-Lohn während der Anstellung: | C45: Salaire AVS perçu pour toute la durée | D45: Salario AVS percepito durante l’impiego
A46: ahvlohn_k | B46: AHV-Lohn | C46: Salaire AVS | D46: Salario AVS
A47: text4 | B47: Auf Anstellungsdauer bezogen: | C47: Pour la durée de l'emploi: | D47: Per la durata dell'impiego
A48: text5 | B48: Minimal koordinierter Lohn | C48: Salaire coordoné LPP min. perçu | D48: Salario coordinato minimo percepito durante l’impiego
A49: vers_lohn | B49: Versicherter Lohn | C49: Salaire assuré | D49: Salario ass. percepito durante l’impiego
A50: tage | B50: Tage | C50: Jours | D50: Giorni
A51: hinweis1 | B51: Achtung, Sie haben einen reduzierten Verwaltungskostentarif ausgewählt. | C51: Attention, vous avez choisi un tarif réduit pour les frais administratifs. | D51: Attenzione, per i costi di gestione è stata selezionata una tariffa ridotta
A52: hinweis2 | B52: Dieser gilt nur nach Absprache mit der Agrisano Pencas. | C52: Celui-ci n'est valable q'après entente avec l'Agrisano Pencas. | D52: che trova applicazione soltanto previo accordo con Agrisano Pencas.
A53: sparprämie | B53: Sparbeitrag | C53: Cotisation d'épargne | D53: Premio di risparmio
A54: risikoprämie | B54: Risikobeitrag | C54: Cotisation de risque | D54: Premio di rischio
A55: verwkosten | B55: Verwaltungskosten | C55: Frais administratifs | D55: Costi di gestione
A56: sifo | B56: Beitrag Sicherheitsfonds | C56: Fonds de garantie | D56: Contributo per il fondo di garanzia
A57: tot_prämie | B57: Total Beitrag | C57: Cotisation totale | D57: Totale del premio
A58: altersgutschrift | B58: Altersgutschrift | C58: Bonification de vieillesse | D58: Accredito di vecchiaia
A59: beitrag | B59: Beitrag | C59: Cotisation | D59: Contributo
A60: tabelle | B60: Tabelle | C60: Tableau | D60: Tabella
A61: netto | B61: netto | C61: nette | D61: netto
A62: vers_lohnes | B62: in % des vers. Lohnes | C62: % du salaire assuré | D62: % del salario assicurato
A63: AHVLohnes | B63: in % des AHV-Lohnes | C63: % du salaire AVS | D63: % del salario AVS
A64: franken | B64: CHF | C64: CHF | D64: CHF
A65: beitrag_an_max | B65: Maximaler Beitrag des Arbeitnehmers | C65: Cotisation maximale de l'employé | D65: Contributo massimo del lavoratore
A66: beitrag_an | B66: Beitrag Arbeitnehmer | C66: Cotisation de l'employé | D66: Contributo del lavoratore
A67: beitrag_an2 | B67: davon Anteil Arbeitnehmer | C67: Part du salarié | D67: Contributo del lavoratore
A68: beitrag_ag | B68: Beitrag Arbeitgeber | C68: Cotisation de l'employeur | D68: Contributo del datore di lavoro
A69: prämie_betrieb | B69: Total Beiträge Betrieb | C69: Cotisation totale de l'exloitation | D69: Totale die contributi della società
A70: titel_bestandesrechner | B70: Bestandesrechner Agrisano Pencas | C70: Calculateur de prime | D70: Calcolo dei contributi del portafoglio
A71: name_betrieb | B71: Name Betrieb | C71: Nom de | D71: Nome
A72: adresse | B72: Adresse | C72: Adresse | D72: Indirizzo
A73: sparprämie_best | B73: Sparbeitrag % | C73: Cotisation d'épargne (%) | D73: Premi risparmio (%)
A74: sparprämie2_best | B74: Sparbeitrag | C74: Cotisation d'épargne | D74: Premi risparmio
A75: risikoprämie_best | B75: Risikobeitrag % | C75: Cotisation de risque (%) | D75: Premi rischio (%)
A76: risikoprämie2_best | B76: Risikobeitrag | C76: Cotisation de risque | D76: Premi rischio
A77: verwkosten2 | B77: Verwaltungs-kosten | C77: Frais de gestion | D77: Costi di gestione
A78: sifo2 | B78: Sicherheits-fonds Beitrag | C78: Fonds de sécurité | D78: Fondo di garanzia
A79: titel2 | B79: Beitragsverzeichnis Pensionskasse | C79: Cotisations de la prévoyance professionnelle | D79: Contributi della previdenza professionale
A80: grundbeitrag_vk | B80: Grundbeitrag Verwaltungskosten | C80: Cotisation de base frais administratifs | D80: Contributo di base per le spese amministrtive
A81: geschlecht1k | B81: M | C81: M | D81: M
A82: geschlecht2k | B82: W | C82: F | D82: F
A83: fusszeile | B83: Laurstrasse 10 | 5201 Brugg | Telefon +41 (0)56 461 78 11 | Fax +41 (0)56 461 71 01 pencas@agrisano.ch | www.agrisano.ch | C83: Laurstrasse 10 | 5201 Brugg | Téléphone +41 (0)56 461 78 11 | Fax +41 (0)56 461 71 01 pencas@agrisano.ch | www.agrisano.ch | D83: Laurstrasse 10 | 5201 Brugg | Telefono +41 (0)56 461 78 11 | Fax +41 (0)56 461 71 01 pencas@agrisano.ch | www.agrisano.ch
A84: auswahl_iv1 | B84: keine Reduktion | C84: Pas de réduction | D84: Nessuna riduzione
A85: auswahl_iv2 | B85: kein BVG | C85: Pas de LPP | D85: Nessuna LPP
A86: ivgrad | B86: Invaliditätsgrad | C86: Degré d'invalidité | D86: Grado di invalidità
A87: red_koa | B87: Reduktion Koordinationsabzug | C87: Réduction de la déduction de coordination | D87: Riduzione delle deduzione di coordinamento
A88: aktiv | B88: Aktiv | C88: actif | D88: attivo
A89: nichtaktiv | B89: Nicht aktiv | C89: Non actif | D89: non attivo
A90: hinweis_zins | B90: Der Zins für die Nachschüssigkeit wurde nicht berücksichtigt. | C90: Les intérêts pour le paiement à terme échu n'a pas été pris en compte. | D90: Le supplemento per versamento posticipato non è considerato.
A91: hinweis_iv | B91: Der IV - Beitragsrechner ist aktiv! Bitte entsprechendes Tabellenblatt verwenden. | C91: Le calculateur de cotisation AI est actif! Veuillez utiliser la feuille Excel correspondante. | D91: Der IV - Beitragsrechner ist aktiv! Bitte entsprechendes Tabellenblatt verwenden.
A92: titel1_iv | B92: Berechnung der Beiträge an die berufliche Vorsorge - Bei Invalidität | C92: Calcul des cotisations à la prévoyance professionnelle - en cas d'invalidité | D92: Calcolo dei contributi a favore della previdenza pro-fessionale
A93: titel_hinweis | B93: Hinweise: | C93: Indication : | D93: Indicazione
A94: ivrechner | B94: IV-Rechner | C94: Calculateur AI | D94: Calcolatore AI
A95: ivrechner_aktiv | B95: IV-Rechner aktiv? | C95: Calculateur AI actif? | D95: Calcolatore AI attivo?
A96: hinweis_druck | B96: Zum Drucken das Tabellenblatt "Druck" verwenden | C96: Pour imprimer le tableau utiliser le "Imprimer" | D96: Per stampare la tabella utilizzare "Stampa"
A97: hinweis_erf_bestand | B97: Hinweis: Um invalide Personen zu berechnen, bitte den Einzelrechner verwenden. | C97: Indication : Pour le calcul de personnes invalides, veuillez utiliser le calculateur individuel. | D97: Hinweis: Um invalide Personen zu berechnen, bitte den Einzelrechner verwenden.

Sheet Berechnung_einzeln (hidden)
A1: Berechnungen
A4: Anstellungsdauer | H4: Bedingungen | I4: Standard | J4: mit Koa
A5: Start Anstellung | B5: =u_anst_start -> 44562 | H5: Jahrgang erfasst | I5: =IF(u_jahrgang>0,TRUE,FALSE) -> TRUE
A6: Ende Anstellung | B6: =u_anst_ende -> 44926 | H6: Geschlecht erfasst | I6: =IF(u_geschlecht1="",FALSE,TRUE) -> TRUE
A7: Anzahl Tage | B7: =IF(OR(B5=0,B6=0,B6-B5+1<0),1,B6-B5+1) -> 365 | H7: Alter min erreicht | I7: =IF(p_jahr-p_alter_min>=u_jahrgang,TRUE,FALSE) -> TRUE
H8: Unter Alter max | I8: =IF(AND(u_geschlecht=1,p_jahr-p_alter_max_m<=u_jahrgang),TRUE,IF(AND(u_geschlecht=2,p_jahr-p_alter_max_w<=u_jahrgang),TRUE,FALSE)) -> TRUE
H9: Basisplan erfasst | I9: =IF(u_plan1="",FALSE,TRUE) -> TRUE
H10: Koa erfasst | I10: =IF(u_plan_koa1="",FALSE,TRUE) -> TRUE
A11: Lohn | C11: mit Koa | H11: Vk-Tarif erfasst | I11: =IF(u_vkrabatt1="",FALSE,TRUE) -> TRUE
A12: Lohn während Anst | B12: =u_lohn -> 86040 | H12: Tage vorhanden | I12: =b_anst_dauer>1 -> TRUE
A13: Lohn auf Jahr aufgerechnet | B13: =u_lohn/b_anst_dauer*p_jahr_tage -> 86040 | H13: Lohn vorhanden | I13: =B12>0 -> TRUE | K13: => Lohn grösser 0
H14: Über Eintrittsschwelle | I14: =b_lohn_jahr>p_eintrittsschwelle -> TRUE
A15: min. ko.Lohn (auf Dauer) | B15: =ROUND(p_min_kolohn/p_jahr_tage*b_anst_dauer,0) -> 3585 | C15: =ROUND(p_min_kolohn/p_jahr_tage*b_anst_dauer,0) -> 3585 | H15: Lohn über min. Ko.lohn | I15: =B12>=(B15+B16) -> TRUE | J15: =B12>=(C15+C16) -> TRUE | K15: => wenn falsch, dann KoordLohn = min. koordLohn // eigener Wert für mit/ohne Koa
A16: eff. Koordinationabzug (auf Dauer) | B16: =IF(I21,ROUND(p_max_koabzug/p_jahr_tage*b_anst_dauer,0),0) -> 25095 | C16: =ROUND(p_max_koabzug/p_jahr_tage*b_anst_dauer,0) -> 25095 | H16: Übertrifft max. Vers Lohn | I16: =b_lohn_jahr>p_maxBVGLohn -> FALSE
A17: Max. ver Lohn BVG (auf Dauer) | B17: =ROUND(p_maxBVGLohn/p_jahr_tage*b_anst_dauer,2) -> 860400 | C17: =ROUND(p_maxBVGLohn/p_jahr_tage*b_anst_dauer,2) -> 860400 | H17: Grundlagen 1 erfüllt | I17: =AND(I5:I13) -> TRUE | K17: => Alles Bedingungen erfüllt, ohne Lohn über Eintrittsschwelle
A18: Max Lohn - kooAbzug | B18: =B17-B16 -> 835305 | C18: =C17-C16 -> 835305 | H18: Grundlagen erfüllt | I18: =AND(I14,I17) -> TRUE | K18: => Grundlagen 1 und Lohn über Eintrittsschwelle
A19: Koord Lohn (auf Dauer) | B19: =ROUND(IF(b_grundlagen_erf,IF(u_ivfaktor=0,0,IF($I$16,B18,IF($I$15,u_lohn-B16,B15))),0),0) -> 60945 | C19: =ROUND(IF(b_grundlagen_erf,IF(u_ivfaktor=0,0,IF(I16,C18,IF(J15,u_lohn-C16,C15))),0),0) -> 60945 | H19: Übertrifft max. AHV Lohn | I19: =b_lohn_jahr>p_max_ahvlohn -> FALSE
A20: überobl. Vers Lohn | B20: =ROUND(IF(I19,b_koordLohn-p_max_kolohn/p_jahr_tage*b_anst_dauer,0),0) -> 0 | C20: =ROUND(IF(I19,C19-p_max_kolohn/p_jahr_tage*b_anst_dauer,0),0) -> 0
A21: BVG vers. Lohn | B21: =ROUND(IF(I19,C19-C20,C19),0) -> 60945 | H21: Plan mit Ko.abzug | I21: =IF(I10,IF(u_plan_koa=1,TRUE,FALSE),FALSE) -> TRUE
H22: VK max | I22: =B38>B37 -> TRUE
H24: Zusatzplan vorhanden | I24: =u_zusatzplan>0 -> FALSE
H26: IV-Rechner aktiv | I26: =IF(u_ivaktiv1=1,TRUE,FALSE) -> FALSE
A27: Tarife
A28: Sparprämie Satz | B28: =ROUND(IF(b_grundlagen_erf1,VLOOKUP(p_jahr-u_jahrgang,pr_sparteil,u_geschlecht+1,FALSE)/(1+p_zins),0),5) -> 0.06931
A29: Sparprämie | B29: =ROUND(IF(b_grundlagen_erf,b_koordLohn*B28,0),1) -> 4224.1
A31: Total Prämiensatz | B31: =IF(b_grundlagen_erf1,VLOOKUP(u_jahrgang,pr_risiko,u_plan+u_geschlecht,FALSE)-VLOOKUP(u_vkrabatt,pr_vkrabatt,2,FALSE),0) -> 0.09371
A33: SiFo - Satz | B33: =IF(b_grundlagen_erf1,VLOOKUP(u_jahrgang,pr_risiko,8,FALSE),0) -> 0.0012
A34: SiFo - Betrag | B34: =ROUND(IF(b_grundlagen_erf,B33*B21,0),1) -> 73.1
A36: VK Satz theoretisch | B36: =VLOOKUP(u_jahrgang,pr_risiko,9,FALSE)-VLOOKUP(u_vkrabatt,pr_vkrabatt,2,FALSE) -> 0.014
A37: VK max | B37: =VLOOKUP(u_vkrabatt,pr_vkrabatt,3,FALSE)/p_jahr_tage*b_anst_dauer -> 360
A38: VK theoretisch | B38: =B36*b_koordLohn -> 853.23
A39: VK effektiv | B39: =ROUND(IF(b_grundlagen_erf,IF(I22,B37,B38),0),1) -> 360
A40: VK Satz effektiv | B40: =IFERROR(IF(b_grundlagen_erf,ROUND(b_vkeff/b_koordLohn,3),0),0) -> 0.006
A42: Risikoprämie Satz | B42: =IF(b_grundlagen_erf1,ROUND(b_prämie_tot-b_sparprämie_satz-b_vk_theo-b_sifo_satz,5),0) -> 0.0092
A43: Risikoprämie | B43: =ROUND(IF(b_grundlagen_erf,b_koordLohn*B42,0),1) -> 560.7
A45: Total AHV-Prämie | B45: =IFERROR((ROUND(b_prämie_ges,1)/ROUND(b_lohn_jahr,1))/2,0) -> 0.03032252441
A46: Total Netto Prämie Satz | B46: =IFERROR(IF(b_grundlagen_erf,(ROUND(b_sparprämie,1)+ROUND(b_sifo,1)+ROUND(b_vkeff,1)+ROUND(b_risikoprämie,1))/b_koordLohn,""),0) -> 0.0856165395
A47: Total Netto Prämie | B47: =IF(b_grundlagen_erf,b_prämie_tot_netto*b_koordLohn,0) -> 5217.9
A49: Anteil AN | B49: =IF(b_grundlagen_erf,b_prämie_ges/2,0) -> 2608.95
A52: Zusatzplan
A53: Sparprämie Zusatz Satz | B53: =IF(AND(b_grundlagen_erf,I24),ROUND(VLOOKUP(p_jahr-u_jahrgang,pr_sparteil,u_zusatzplan+3,FALSE)/(1+p_zins),5),"") -> 
A54: Sparprämie Zusatz | B54: =ROUND(IF(AND(b_grundlagen_erf,I24),B53*b_koordLohn,0),1) -> 0
A56: Risikoprämie Zusatz Satz | B56: =IF(u_zusatzplan>2,IF(AND(b_grundlagen_erf,I24),ROUND(VLOOKUP(p_jahr-u_jahrgang,Risikoprämie_Zusatz,u_zusatzplan-1,FALSE)/(1+p_zins),4),""),"") -> 
A57: Risikoprämie Zusatz | B57: =IF(u_zusatzplan<3,0,ROUND(IF(AND(b_grundlagen_erf,I24),B56*b_koordLohn,0),1)) -> 0
A59: Total Zusatz | B59: =SUM(B54,B57) -> 0

Sheet Beitragsrechner
I2: =VLOOKUP("as_pencas",texte,u_sprache,FALSE) -> Agrisano Pencas
I3: =VLOOKUP("as_pencas1",texte,u_sprache,FALSE) -> Berufliche Vorsorge | L3: =TODAY() -> 2022-04-07
B4: =VLOOKUP("titel1",texte,u_sprache,FALSE) -> Berechnung der Beiträge an die berufliche Vorsorge | O4: de
B6: =VLOOKUP("text1",texte,u_sprache,FALSE) -> Die Beitragsberechnung beruht auf den erfassten Daten. Massgebend ist schlussendlich die Prämienrechnung der Agrisano Pencas, welche aufgrund der effektiv gemeldeten Löhne erstellt wird.
B7: =VLOOKUP("text2",texte,u_sprache,FALSE) -> Bei Fragen zur Prämienrechnung wenden Sie sich bitte an die Agrisano Stiftung Globalversicherung (Tel. 056 461 78 55). Für die Berechnung der Beiträge von (teil-)invaliden Arbeitnehmenden nehmen Sie bitte Kontakt mit der Agrisano Pencas (Tel. 056 461 78 11) auf.
B8: =VLOOKUP("text3",texte,u_sprache,FALSE) -> Die Versicherungspflicht gilt nur für Anstellungsverhältnisse, die für mehr als 3 Monate eingegangen worden sind (gilt auch, wenn das Arbeitsverhältnis zwischenzeitlich maximal 3 Monate unterbrochen wird, die Gesamtbeschäftigungsdauer aber mehr als 3 Monate beträgt).
B10: =VLOOKUP("name",texte,u_sprache,FALSE) -> Vorname / Name | D10: Beispiel | G10: =VLOOKUP("jahr",texte,u_sprache,FALSE) -> Jahr | I10: =p_jahr -> 2022
B11: =VLOOKUP("ahvnr",texte,u_sprache,FALSE) -> AHV-Nr. | D11: 756.1234.1234.12 | G11: =VLOOKUP("anstellungsdauer",texte,u_sprache,FALSE) -> Anstellungsdauer von | I11: 2022-01-01
B12: =VLOOKUP("jahrgang",texte,u_sprache,FALSE) -> Jahrgang | D12: 1995 | G12: =VLOOKUP("anstellungsdauer_bis",texte,u_sprache,FALSE) -> Anstellungsdauer bis | I12: 2022-12-31
B13: =VLOOKUP("geschlecht",texte,u_sprache,FALSE) -> Geschlecht | D13: weiblich | G13: =VLOOKUP("tage",texte,u_sprache,FALSE) -> Tage | I13: =Berechnung_einzeln!B7 -> 365
B14: =VLOOKUP("basisplan",texte,u_sprache,FALSE) -> Basisplan | D14: Plan A | G14: =VLOOKUP("ahvlohn",texte,u_sprache,FALSE) -> AHV-Lohn während der Anstellung: | I14: 86040
B15: =VLOOKUP("koa",texte,u_sprache,FALSE) -> Koordinationsabzug | D15: mit Koordinationsabzug | G15: =VLOOKUP("text4",texte,u_sprache,FALSE) -> Auf Anstellungsdauer bezogen:
B16: =VLOOKUP("vktarif",texte,u_sprache,FALSE) -> Verwaltungskostentarif | D16: Standardtarif | G16: =VLOOKUP("text5",texte,u_sprache,FALSE) -> Minimal koordinierter Lohn | I16: =Berechnung_einzeln!B15 -> 3585
B17: =VLOOKUP("zusatzplan",texte,u_sprache,FALSE) -> Zusatzplan | D17: Kein Zusatzplan | G17: =VLOOKUP("koa",texte,u_sprache,FALSE) -> Koordinationsabzug | I17: =Berechnung_einzeln!B16 -> 25095
G18: =VLOOKUP("vers_lohn",texte,u_sprache,FALSE) -> Versicherter Lohn | I18: =b_koordLohn -> 60945
B19: =IF(u_vkrabatt<>0,VLOOKUP("hinweis1",texte,u_sprache,FALSE),"") -> 
B20: =IF(u_vkrabatt<>0,VLOOKUP("hinweis2",texte,u_sprache,FALSE),"") -> 
B22: =VLOOKUP("basisplan",texte,u_sprache,FALSE) -> Basisplan
B24: =VLOOKUP("sparprämie",texte,u_sprache,FALSE) -> Sparbeitrag | D24: =VLOOKUP("risikoprämie",texte,u_sprache,FALSE) -> Risikobeitrag | F24: =VLOOKUP("verwkosten",texte,u_sprache,FALSE) -> Verwaltungskosten | H24: =VLOOKUP("sifo",texte,u_sprache,FALSE) -> Beitrag Sicherheitsfonds | L24: =VLOOKUP("tot_prämie",texte,u_sprache,FALSE) -> Total Beitrag
B26: % | C26: =VLOOKUP("altersgutschrift",texte,u_sprache,FALSE) -> Altersgutschrift | D26: % | E26: =VLOOKUP("beitrag",texte,u_sprache,FALSE) -> Beitrag | F26: % | G26: =VLOOKUP("beitrag",texte,u_sprache,FALSE) -> Beitrag | H26: % | I26: =VLOOKUP("beitrag",texte,u_sprache,FALSE) -> Beitrag | K26: =VLOOKUP("vers_Lohnes",texte,u_sprache,FALSE) -> in % des vers. Lohnes | L26: =VLOOKUP("AHVLohnes",texte,u_sprache,FALSE) -> in % des AHV-Lohnes | M26: =VLOOKUP("franken",texte,u_sprache,FALSE) -> CHF
B28: =b_sparprämie_satz -> 0.06931 | C28: =b_sparprämie -> 4224.1 | D28: =b_risiko_satz -> 0.0092 | E28: =b_risikoprämie -> 560.7 | F28: =Berechnung_einzeln!B40 -> 0.006 | G28: =b_vkeff -> 360 | H28: =b_sifo_satz -> 0.0012 | I28: =b_sifo -> 73.1 | K28: =b_prämie_tot_netto -> 0.0856165395 | L28: =Berechnung_einzeln!B45 -> 0.03032252441 | M28: =b_prämie_ges -> 5217.9
B30: =VLOOKUP("zusatzplan",texte,u_sprache,FALSE) -> Zusatzplan
B32: =b_sparprämie_satz_z ->  | C32: =b_sparprämie_z -> 0 | D32: =Berechnung_einzeln!B56 ->  | E32: =Berechnung_einzeln!B57 -> 0 | M32: =IF(E32="",C32,C32+E32) -> 0
H34: =VLOOKUP("tot_prämie",texte,u_sprache,FALSE) -> Total Beitrag | M34: =SUM(M28:M32) -> 5217.9
H36: =VLOOKUP("beitrag_an_max",texte,u_sprache,FALSE) -> Maximaler Beitrag des Arbeitnehmers | M36: =M34/2 -> 2608.95
E40: =VLOOKUP("hinweis_iv",texte,u_sprache,FALSE) -> Der IV - Beitragsrechner ist aktiv! Bitte entsprechendes Tabellenblatt verwenden.
F51: =VLOOKUP("hinweis_druck",texte,u_sprache,FALSE) -> Zum Drucken das Tabellenblatt "Druck" verwenden

Sheet Beitragsrechner IV (hidden)
B2: =VLOOKUP("ivrechner",texte,u_sprache,FALSE) -> IV-Rechner
B3: =VLOOKUP("ivrechner_aktiv",texte,u_sprache,FALSE) -> IV-Rechner aktiv? | D3: Nicht aktiv
I6: =VLOOKUP("as_pencas",texte,u_sprache,FALSE) -> Agrisano Pencas
I7: =VLOOKUP("as_pencas1",texte,u_sprache,FALSE) -> Berufliche Vorsorge | L7: =TODAY() -> 2022-04-07
B8: =VLOOKUP("titel1_iv",texte,u_sprache,FALSE) -> Berechnung der Beiträge an die berufliche Vorsorge - Bei Invalidität
B10: =VLOOKUP("text1",texte,u_sprache,FALSE) -> Die Beitragsberechnung beruht auf den erfassten Daten. Massgebend ist schlussendlich die Prämienrechnung der Agrisano Pencas, welche aufgrund der effektiv gemeldeten Löhne erstellt wird.
B11: =VLOOKUP("text2",texte,u_sprache,FALSE) -> Bei Fragen zur Prämienrechnung wenden Sie sich bitte an die Agrisano Stiftung Globalversicherung (Tel. 056 461 78 55). Für die Berechnung der Beiträge von (teil-)invaliden Arbeitnehmenden nehmen Sie bitte Kontakt mit der Agrisano Pencas (Tel. 056 461 78 11) auf.
B12: =VLOOKUP("text3",texte,u_sprache,FALSE) -> Die Versicherungspflicht gilt nur für Anstellungsverhältnisse, die für mehr als 3 Monate eingegangen worden sind (gilt auch, wenn das Arbeitsverhältnis zwischenzeitlich maximal 3 Monate unterbrochen wird, die Gesamtbeschäftigungsdauer aber mehr als 3 Monate beträgt).
B14: =VLOOKUP("name",texte,u_sprache,FALSE) -> Vorname / Name | D14: Muster 1 Hans | G14: =VLOOKUP("jahr",texte,u_sprache,FALSE) -> Jahr | I14: =p_jahr -> 2022
B15: =VLOOKUP("ahvnr",texte,u_sprache,FALSE) -> AHV-Nr. | D15: 756.9876.5432.10 | G15: =VLOOKUP("anstellungsdauer",texte,u_sprache,FALSE) -> Anstellungsdauer von | I15: 2021-01-01
B16: =VLOOKUP("jahrgang",texte,u_sprache,FALSE) -> Jahrgang | D16: 1980 | G16: =VLOOKUP("anstellungsdauer_bis",texte,u_sprache,FALSE) -> Anstellungsdauer bis | I16: 2021-06-12
B17: =VLOOKUP("geschlecht",texte,u_sprache,FALSE) -> Geschlecht | D17: Uomo | G17: =VLOOKUP("tage",texte,u_sprache,FALSE) -> Tage | I17: =Berechnung_einzeln!B7 -> 365
B18: =VLOOKUP("basisplan",texte,u_sprache,FALSE) -> Basisplan | D18: Piano A | G18: =VLOOKUP("ahvlohn",texte,u_sprache,FALSE) -> AHV-Lohn während der Anstellung: | I18: 55000
B19: =VLOOKUP("koa",texte,u_sprache,FALSE) -> Koordinationsabzug | D19: Con deduzione di coordinamento | G19: =VLOOKUP("text4",texte,u_sprache,FALSE) -> Auf Anstellungsdauer bezogen:
B20: =VLOOKUP("vktarif",texte,u_sprache,FALSE) -> Verwaltungskostentarif | D20: Tariffa standard | G20: =VLOOKUP("text5",texte,u_sprache,FALSE) -> Minimal koordinierter Lohn | I20: =Berechnung_einzeln!B15 -> 3585
B21: =VLOOKUP("zusatzplan",texte,u_sprache,FALSE) -> Zusatzplan | D21: Senza piano supplementare | G21: =VLOOKUP("ivgrad",texte,u_sprache,FALSE) -> Invaliditätsgrad | I21: 0
G22: =VLOOKUP("red_koa",texte,u_sprache,FALSE) -> Reduktion Koordinationsabzug | I22: =u_ivreduktion -> keine Reduktion
G23: =VLOOKUP("koa",texte,u_sprache,FALSE) -> Koordinationsabzug | I23: =Berechnung_einzeln!B16 -> 25095
B24: =IF(u_vkrabatt<>0,VLOOKUP("hinweis1",texte,u_sprache,FALSE),"") ->  | G24: =VLOOKUP("vers_lohn",texte,u_sprache,FALSE) -> Versicherter Lohn | I24: =Berechnung_einzeln!B19 -> 60945
B25: =IF(u_vkrabatt<>0,VLOOKUP("hinweis2",texte,u_sprache,FALSE),"") -> 
B27: =VLOOKUP("basisplan",texte,u_sprache,FALSE) -> Basisplan
B29: =VLOOKUP("sparprämie",texte,u_sprache,FALSE) -> Sparbeitrag | D29: =VLOOKUP("risikoprämie",texte,u_sprache,FALSE) -> Risikobeitrag | F29: =VLOOKUP("verwkosten",texte,u_sprache,FALSE) -> Verwaltungskosten | H29: =VLOOKUP("sifo",texte,u_sprache,FALSE) -> Beitrag Sicherheitsfonds | J29: =VLOOKUP("tot_prämie",texte,u_sprache,FALSE) -> Total Beitrag
B31: % | C31: =VLOOKUP("altersgutschrift",texte,u_sprache,FALSE) -> Altersgutschrift | D31: % | E31: =VLOOKUP("beitrag",texte,u_sprache,FALSE) -> Beitrag | F31: % | G31: =VLOOKUP("beitrag",texte,u_sprache,FALSE) -> Beitrag | H31: % | I31: =VLOOKUP("beitrag",texte,u_sprache,FALSE) -> Beitrag | J31: =VLOOKUP("tabelle",texte,u_sprache,FALSE) -> Tabelle | K31: =VLOOKUP("vers_Lohnes",texte,u_sprache,FALSE) -> in % des vers. Lohnes | L31: =VLOOKUP("AHVLohnes",texte,u_sprache,FALSE) -> in % des AHV-Lohnes | M31: =VLOOKUP("franken",texte,u_sprache,FALSE) -> CHF
B33: =b_sparprämie_satz -> 0.06931 | C33: =b_sparprämie -> 4224.1 | D33: =b_risiko_satz -> 0.0092 | E33: =b_risikoprämie -> 560.7 | F33: =Berechnung_einzeln!B40 -> 0.006 | G33: =b_vkeff -> 360 | H33: =b_sifo_satz -> 0.0012 | I33: =b_sifo -> 73.1 | J33: =b_prämie_tot -> 0.09371 | K33: =b_prämie_tot_netto -> 0.0856165395 | L33: =Berechnung_einzeln!B45 -> 0.03032252441 | M33: =b_prämie_ges -> 5217.9
B35: =VLOOKUP("zusatzplan",texte,u_sprache,FALSE) -> Zusatzplan
B37: =b_sparprämie_satz_z ->  | C37: =b_sparprämie_z -> 0 | M37: =C37 -> 0
H39: =VLOOKUP("tot_prämie",texte,u_sprache,FALSE) -> Total Beitrag | M39: =SUM(M33:M37) -> 5217.9
H41: =VLOOKUP("beitrag_an_max",texte,u_sprache,FALSE) -> Maximaler Beitrag des Arbeitnehmers | M41: =M39/2 -> 2608.95
C54: Bitte das Tabellenblatt "Druck" verwenden!

Sheet Druck
C8: =CONCATENATE(VLOOKUP("titel1",texte,u_sprache,FALSE)," ",p_jahr) -> Berechnung der Beiträge an die berufliche Vorsorge 2022
C11: =VLOOKUP("person",texte,u_sprache,FALSE) -> Versicherte Person | K11: =VLOOKUP("anstellung",texte,u_sprache,FALSE) -> Anstellung
C13: =VLOOKUP("name",texte,u_sprache,FALSE) -> Vorname / Name | F13: =u_name -> Beispiel | K13: =VLOOKUP("jahr",texte,u_sprache,FALSE) -> Jahr | O13: =p_jahr -> 2022
C14: =VLOOKUP("ahvnr",texte,u_sprache,FALSE) -> AHV-Nr. | F14: =u_ahvnr -> 756.1234.1234.12 | K14: =VLOOKUP("anstellungsdauer",texte,u_sprache,FALSE) -> Anstellungsdauer von | O14: =u_anst_start -> 2022-01-01
C15: =VLOOKUP("jahrgang",texte,u_sprache,FALSE) -> Jahrgang | F15: =u_jahrgang -> 1995 | K15: =VLOOKUP("anstellungsdauer_bis",texte,u_sprache,FALSE) -> Anstellungsdauer bis | O15: =u_anst_ende -> 2022-12-31
C16: =VLOOKUP("geschlecht",texte,u_sprache,FALSE) -> Geschlecht | F16: =u_geschlecht1 -> weiblich | K16: =VLOOKUP("ahvlohn",texte,u_sprache,FALSE) -> AHV-Lohn während der Anstellung: | O16: =u_lohn -> 86040
C17: =VLOOKUP("ivgrad",texte,u_sprache,FALSE) -> Invaliditätsgrad | F17: =u_ivgrad -> 0
C19: =VLOOKUP("pk",texte,u_sprache,FALSE) -> Versicherungslösung | K19: =VLOOKUP("vers_lohn",texte,u_sprache,FALSE) -> Versicherter Lohn
C21: =VLOOKUP("plan",texte,u_sprache,FALSE) -> Plan | F21: =CONCATENATE(u_plan1,IF(u_zusatzplan =0,"",CONCATENATE("/",u_zusatzplan1))) -> Plan A | K21: =VLOOKUP("text4",texte,u_sprache,FALSE) -> Auf Anstellungsdauer bezogen:
C22: =VLOOKUP("koa",texte,u_sprache,FALSE) -> Koordinationsabzug | F22: =u_plan_koa1 -> mit Koordinationsabzug | K22: =VLOOKUP("text5",texte,u_sprache,FALSE) -> Minimal koordinierter Lohn | O22: =Berechnung_einzeln!$B$15 -> 3585
C23: =VLOOKUP("vktarif",texte,u_sprache,FALSE) -> Verwaltungskostentarif | F23: =u_vkrabatt1 -> Standardtarif | K23: =VLOOKUP("koa",texte,u_sprache,FALSE) -> Koordinationsabzug | O23: =Berechnung_einzeln!$B$16 -> 25095
C24: =VLOOKUP("zusatzplan",texte,u_sprache,FALSE) -> Zusatzplan | F24: =u_zusatzplan1 -> Kein Zusatzplan | K24: =VLOOKUP("vers_lohn",texte,u_sprache,FALSE) -> Versicherter Lohn | O24: =b_koordLohn -> 60945
K25: =VLOOKUP("red_koa",texte,u_sprache,FALSE) -> Reduktion Koordinationsabzug | O25: =u_ivreduktion -> keine Reduktion
C28: =VLOOKUP("basisplan",texte,u_sprache,FALSE) -> Basisplan
C30: =VLOOKUP("sparprämie",texte,u_sprache,FALSE) -> Sparbeitrag | K30: =b_sparprämie_satz -> 0.06931 | N30: =b_sparprämie -> 4224.1
C33: =VLOOKUP("risikoprämie",texte,u_sprache,FALSE) -> Risikobeitrag | K33: =Berechnung_einzeln!B42 -> 0.0092 | N33: =b_risikoprämie -> 560.7
C36: =VLOOKUP("verwkosten",texte,u_sprache,FALSE) -> Verwaltungskosten | K36: =Berechnung_einzeln!B40 -> 0.006 | N36: =b_vkeff -> 360
C39: =VLOOKUP("sifo",texte,u_sprache,FALSE) -> Beitrag Sicherheitsfonds | K39: =b_sifo_satz -> 0.0012 | N39: =b_sifo -> 73.1
F42: =VLOOKUP("AHVLohnes",texte,u_sprache,FALSE) -> in % des AHV-Lohnes | K42: =Berechnung_einzeln!B45 -> 0.03032252441
C43: =VLOOKUP("tot_prämie",texte,u_sprache,FALSE) -> Total Beitrag | F43: =VLOOKUP("vers_Lohnes",texte,u_sprache,FALSE) -> in % des vers. Lohnes | K43: =b_prämie_tot_netto -> 0.0856165395 | N43: =b_prämie_ges -> 5217.9
C47: =VLOOKUP("zusatzplan",texte,u_sprache,FALSE) -> Zusatzplan
C49: =IF(u_zusatzplan=0,VLOOKUP("plan0",texte,u_sprache,FALSE),VLOOKUP("sparprämie",texte,u_sprache,FALSE)) -> Kein Zusatzplan | K49: =Berechnung_einzeln!B53 ->  | N49: =Berechnung_einzeln!B54 -> 0
C52: =IF(u_zusatzplan=0,VLOOKUP("plan0",texte,u_sprache,FALSE),VLOOKUP("Risikoprämie",texte,u_sprache,FALSE)) -> Kein Zusatzplan | K52: =Berechnung_einzeln!B56 ->  | N52: =Berechnung_einzeln!B57 -> 0
C55: =VLOOKUP("tot_prämie",texte,u_sprache,FALSE) -> Total Beitrag | N55: =SUM(N49,N52) -> 0
C59: Total | N59: =IF(N52="",N43+N49,N43+N49+N52) -> 5217.9
C61: =VLOOKUP("beitrag_an_max",texte,u_sprache,FALSE) -> Maximaler Beitrag des Arbeitnehmers | N61: =N59/2 -> 2608.95
B64: =IF(u_vkrabatt<>0,CONCATENATE(VLOOKUP("hinweis1",texte,u_sprache,FALSE)," ",VLOOKUP("hinweis2",texte,u_sprache,FALSE)),"") -> 
B65: =CONCATENATE(VLOOKUP("text1",texte,u_sprache,FALSE)," ",VLOOKUP("text1a",texte,u_sprache,FALSE)) -> Die Beitragsberechnung beruht auf den erfassten Daten. Massgebend ist schlussendlich die Prämienrechnung der Agrisano Pencas, welche aufgrund der effektiv gemeldeten Löhne erstellt wird. Sie beinhaltet zudem einen Zins für das nachschüssige Inkasso.
B66: =VLOOKUP("text2",texte,u_sprache,FALSE) -> Bei Fragen zur Prämienrechnung wenden Sie sich bitte an die Agrisano Stiftung Globalversicherung (Tel. 056 461 78 55). Für die Berechnung der Beiträge von (teil-)invaliden Arbeitnehmenden nehmen Sie bitte Kontakt mit der Agrisano Pencas (Tel. 056 461 78 11) auf.
B67: =VLOOKUP("text3",texte,u_sprache,FALSE) -> Die Versicherungspflicht gilt nur für Anstellungsverhältnisse, die für mehr als 3 Monate eingegangen worden sind (gilt auch, wenn das Arbeitsverhältnis zwischenzeitlich maximal 3 Monate unterbrochen wird, die Gesamtbeschäftigungsdauer aber mehr als 3 Monate beträgt).

Sheet Erfassung_Bestand (hidden)
A1: =VLOOKUP("titel_bestandesrechner",texte,u_sprache,FALSE) -> Bestandesrechner Agrisano Pencas
A3: =VLOOKUP("basisplan",texte,u_sprache,FALSE) -> Basisplan | B3: Plan A | E3: =VLOOKUP("name_betrieb",texte,u_sprache,FALSE) -> Name Betrieb
A4: =VLOOKUP("koa",texte,u_sprache,FALSE) -> Koordinationsabzug | B4: mit Koordinationsabzug | E4: =VLOOKUP("adresse",texte,u_sprache,FALSE) -> Adresse
A5: =VLOOKUP("zusatzplan",texte,u_sprache,FALSE) -> Zusatzplan | B5: Kein Zusatzplan
A6: =VLOOKUP("vktarif",texte,u_sprache,FALSE) -> Verwaltungskostentarif | B6: Standardtarif
A7: =VLOOKUP("beitrag_an",texte,u_sprache,FALSE) -> Beitrag Arbeitnehmer | B7: 0.5
A9: =VLOOKUP("hinweis_erf_bestand",texte,u_sprache,FALSE) -> Hinweis: Um invalide Personen zu berechnen, bitte den Einzelrechner verwenden.
A11: =VLOOKUP("name",texte,u_sprache,FALSE) -> Vorname / Name | B11: =VLOOKUP("geschlecht",texte,u_sprache,FALSE) -> Geschlecht | C11: =VLOOKUP("jahrgang",texte,u_sprache,FALSE) -> Jahrgang | D11: =VLOOKUP("anstellungsdauer_k",texte,u_sprache,FALSE) -> Anst. von | E11: =VLOOKUP("anstellungsdauer_bis_k",texte,u_sprache,FALSE) -> Anst. bis | F11: =VLOOKUP("ahvlohn_k",texte,u_sprache,FALSE) -> AHV-Lohn | G11: =VLOOKUP("zusatzplan",texte,u_sprache,FALSE) -> Zusatzplan
G12: =be_zusatzplan -> Kein Zusatzplan
G13: Kein Zusatzplan
G14: Kein Zusatzplan
G15: Kein Zusatzplan
G16: Kein Zusatzplan
G17: Kein Zusatzplan
G18: Kein Zusatzplan
G19: Kein Zusatzplan
G20: Kein Zusatzplan
G21: Kein Zusatzplan
G22: Kein Zusatzplan
G23: Kein Zusatzplan
G24: Kein Zusatzplan
G25: Kein Zusatzplan
G26: Kein Zusatzplan
G27: Kein Zusatzplan
G28: Kein Zusatzplan
G29: Kein Zusatzplan
G30: Kein Zusatzplan
G31: Kein Zusatzplan
G32: Kein Zusatzplan
G33: Kein Zusatzplan
G34: Kein Zusatzplan
G35: Kein Zusatzplan
G36: Kein Zusatzplan
G37: Kein Zusatzplan
G38: Kein Zusatzplan
G39: Kein Zusatzplan
G40: Kein Zusatzplan
G41: Kein Zusatzplan
G42: Kein Zusatzplan
G43: Kein Zusatzplan
G44: =be_zusatzplan -> Kein Zusatzplan
G45: Kein Zusatzplan
G46: Kein Zusatzplan
G47: Kein Zusatzplan
G48: Kein Zusatzplan
G49: Kein Zusatzplan
G50: Kein Zusatzplan
G51: Kein Zusatzplan
G52: Kein Zusatzplan
G53: Kein Zusatzplan
G54: Kein Zusatzplan
G55: Kein Zusatzplan
G56: Kein Zusatzplan
G57: Kein Zusatzplan
G58: Kein Zusatzplan
G59: Kein Zusatzplan
G60: Kein Zusatzplan
G61: Kein Zusatzplan
G62: Kein Zusatzplan
G63: Kein Zusatzplan
G64: Kein Zusatzplan
G65: Kein Zusatzplan
G66: Kein Zusatzplan
G67: Kein Zusatzplan
G68: Kein Zusatzplan
G69: Kein Zusatzplan
G70: Kein Zusatzplan
G71: =be_zusatzplan -> Kein Zusatzplan
G72: Kein Zusatzplan
G73: Kein Zusatzplan
G74: Kein Zusatzplan
G75: Kein Zusatzplan
G76: =be_zusatzplan -> Kein Zusatzplan
G77: Kein Zusatzplan
G78: Kein Zusatzplan
G79: Kein Zusatzplan
G80: Kein Zusatzplan
G81: Kein Zusatzplan
G82: Kein Zusatzplan
G83: Kein Zusatzplan
G84: Kein Zusatzplan
G85: Kein Zusatzplan
G86: Kein Zusatzplan
G87: Kein Zusatzplan
G88: Kein Zusatzplan
G89: Kein Zusatzplan
G90: Kein Zusatzplan
G91: Kein Zusatzplan
G92: Kein Zusatzplan
G93: Kein Zusatzplan
G94: Kein Zusatzplan
G95: Kein Zusatzplan
G96: Kein Zusatzplan
G97: Kein Zusatzplan
G98: Kein Zusatzplan
G99: Kein Zusatzplan
G100: Kein Zusatzplan
G101: Kein Zusatzplan
G102: Kein Zusatzplan
G103: Kein Zusatzplan
G104: Kein Zusatzplan
G105: Kein Zusatzplan
G106: Kein Zusatzplan
G107: Kein Zusatzplan
G108: Kein Zusatzplan
G109: Kein Zusatzplan
G110: Kein Zusatzplan
G111: Kein Zusatzplan
G112: Kein Zusatzplan
G113: Kein Zusatzplan
G114: Kein Zusatzplan
G115: Kein Zusatzplan
G116: Kein Zusatzplan
G117: Kein Zusatzplan
G118: Kein Zusatzplan
G119: Kein Zusatzplan
G120: Kein Zusatzplan
G121: Kein Zusatzplan
G122: Kein Zusatzplan
G123: Kein Zusatzplan
G124: Kein Zusatzplan
G125: Kein Zusatzplan
G126: Kein Zusatzplan
G127: Kein Zusatzplan
G128: Kein Zusatzplan
G129: Kein Zusatzplan
G130: Kein Zusatzplan
G131: Kein Zusatzplan
G132: Kein Zusatzplan
G133: Kein Zusatzplan
G134: Kein Zusatzplan
G135: Kein Zusatzplan
G136: Kein Zusatzplan
G137: Kein Zusatzplan
G138: Kein Zusatzplan
G139: Kein Zusatzplan
G140: =be_zusatzplan -> Kein Zusatzplan
G141: Kein Zusatzplan
G142: Kein Zusatzplan
G143: Kein Zusatzplan
G144: Kein Zusatzplan
G145: Kein Zusatzplan
G146: Kein Zusatzplan
G147: Kein Zusatzplan
G148: Kein Zusatzplan
G149: Kein Zusatzplan
G150: Kein Zusatzplan
G151: Kein Zusatzplan
G152: Kein Zusatzplan
G153: Kein Zusatzplan
G154: Kein Zusatzplan
G155: Kein Zusatzplan
G156: Kein Zusatzplan
G157: Kein Zusatzplan
G158: Kein Zusatzplan
G159: Kein Zusatzplan
G160: Kein Zusatzplan
G161: Kein Zusatzplan
G162: Kein Zusatzplan
G163: Kein Zusatzplan
G164: Kein Zusatzplan
G165: Kein Zusatzplan
G166: Kein Zusatzplan
G167: Kein Zusatzplan
G168: Kein Zusatzplan
G169: Kein Zusatzplan
G170: Kein Zusatzplan
G171: Kein Zusatzplan
G172: Kein Zusatzplan
G173: Kein Zusatzplan
G174: Kein Zusatzplan
G175: Kein Zusatzplan
G176: Kein Zusatzplan
G177: Kein Zusatzplan
G178: Kein Zusatzplan
G179: Kein Zusatzplan
G180: Kein Zusatzplan
G181: Kein Zusatzplan
G182: Kein Zusatzplan
G183: Kein Zusatzplan
G184: Kein Zusatzplan
G185: Kein Zusatzplan
G186: Kein Zusatzplan
G187: Kein Zusatzplan
G188: Kein Zusatzplan
G189: Kein Zusatzplan
G190: Kein Zusatzplan
G191: Kein Zusatzplan
G192: Kein Zusatzplan
G193: Kein Zusatzplan
G194: Kein Zusatzplan
G195: Kein Zusatzplan
G196: Kein Zusatzplan
G197: Kein Zusatzplan
G198: Kein Zusatzplan
G199: Kein Zusatzplan
G200: Kein Zusatzplan
G201: Kein Zusatzplan
G202: Kein Zusatzplan
G203: Kein Zusatzplan
... 810 more rows

Sheet Bestandesübersicht (hidden)
G1: Agrisano Pencas
G2: Berufliche Vorsorge
A3: Beitragsverzeichnis Pensionskasse 2022
A8: Plan A, mit Koordinationsabzug, Standardtarif | L8: Beitrag Arbeitnehmer | M8: 0.5
A9: Vorname / Name | C9: Jahrgang | D9: AHV-Lohn | E9: Versicherter Lohn | F9: Sparbeitrag % | G9: Sparbeitrag | H9: Risikobeitrag % | I9: Risikobeitrag | J9: Verwaltungs-kosten | K9: Sicherheits-fonds Beitrag | L9: Total Beitrag | M9: davon Anteil Arbeitnehmer
I10: Grundbeitrag Verwaltungskosten | L10: 95
I11: Verwaltungskosten Zusatzplan | L11: =IF(u_zusatzplan=0,0,95) -> 0
I12: Total Beiträge Betrieb | L12: =SUM(L10:L11) -> 95
I14: Beitrag Arbeitnehmer | L14: =SUM(M9:M10) -> 0
I15: Beitrag Arbeitgeber | L15: =L12-L14 -> 95
A16: Hinweise:
A17: Der Zins für die Nachschüssigkeit wurde nicht berücksichtigt.
A18: Die Beitragsberechnung beruht auf den erfassten Daten. Massgebend ist schlussendlich die Prämienrechnung der Agrisano Pencas, welche aufgrund der effektiv gemeldeten Löhne erstellt wird.
